bitfinex/quotes_ETHUSD_20220202
["timestamp","ask_amount","ask_price","bid_price","bid_amount"]
[1643805307497,0.1799,2779.2,2778.5,0.1799]
[1643805307498,1.5032,2779.2,2778.5,0.1799]
[1643805307696,0.02115591,2779.1,2778.2,0.1799]
[1643805307897,0.02115591,2779.1,2778.1,0.1799]
[1643805307898,0.1799,2779.0,2778.1,0.1799]
[1643805308094,0.1799,2779.0,2777.7,0.1799]
[1643805308293,0.1799,2779.0,2777.7,1.03067]
[1643805308294,1.07983,2779.0,2777.7,1.03067]
[1643805308695,0.78055349,2778.1,2777.7,0.88067]
[1643805308896,0.1799,2779.0,2777.7,0.88067]
[1643805309097,1.07982,2779.0,2777.8,1.87767769]
[1643805309296,0.1799,2779.0,2777.9,0.1799]
[1643805309550,3.0974,2779.2,2778.0,1.01273339]
[1643805309551,0.1799,2779.1,2778.0,1.01273339]
[1643805309753,1.075,2779.4,2778.3,0.0584658]
[1643805309949,1.075,2779.1,2778.4,1.97926]
[1643805310149,1.075,2779.1,2778.5,0.89968]
[1643805310350,1.075,2779.1,2778.6,0.1799]
[1643805311658,1.075,2779.1,2778.5,1.07958]
[1643805314818,1.075,2779.0,2778.5,1.07958]
[1643805315624,1.075,2779.0,2778.5,2.37958]
[1643805316619,1.075,2779.0,2778.6,2.19947]
[1643805316819,1.075,2779.0,2778.7,1.97874]
[1643805317064,1.075,2779.0,2778.8,0.816]
[1643805317262,1.075,2779.0,2778.9,0.4799]
[1643805317765,1.075,2779.0,2778.9,0.84364342]
[1643805317963,0.11603521,2779.0,2778.9,0.84364342]
[1643805318662,0.11603521,2779.0,2778.9,1.35964342]
[1643805319669,0.1799,2780.1,2779.3,0.89937]
[1643805319863,4.9438,2780.5,2779.3,0.89937]
[1643805319864,0.1797,2780.4,2779.3,1.07907]
[1643805320063,0.1797,2780.4,2779.4,0.3]
[1643805320465,0.1797,2780.4,2779.5,0.00207252]
[1643805321403,0.1797,2780.4,2779.6,0.89933]
[1643805321596,0.1797,2780.4,2779.7,0.00207252]
[1643805321799,0.1797,2780.4,2779.7,0.30207252]
[1643805322198,0.1797,2780.5,2779.8,0.00207252]
[1643805323405,0.13655688,2780.5,2779.8,0.00207252]
[1643805323808,0.13655688,2780.5,2779.9,0.89916]
[1643805324105,0.13655688,2780.5,2780.0,0.00207252]
[1643805324304,0.87591137,2780.7,2780.0,0.00207252]
[1643805324305,0.1797,2780.6,2780.0,0.00207252]
[1643805325044,0.1797,2781.0,2780.2,0.89913]
[1643805325347,0.1797,2781.0,2780.3,0.30207252]
[1643805326144,0.82287171,2780.9,2780.3,0.30207252]
[1643805326345,0.1797,2780.8,2780.3,0.30207252]
[1643805326744,0.1297,2780.8,2780.3,0.30207252]
[1643805327752,0.1797,2781.0,2780.3,0.30207252]
[1643805327954,0.1797,2781.0,2780.4,0.89908]
[1643805328206,0.1797,2781.0,2780.5,0.00207252]
[1643805328401,0.1797,2781.0,2780.5,0.30207252]
[1643805328802,0.1797,2781.1,2780.6,0.00207252]
[1643805330003,1.1317,2781.3,2780.6,0.90109252]
[1643805330004,0.1797,2781.2,2780.6,0.90109252]
[1643805330201,0.1797,2781.2,2780.7,0.00207252]
[1643805330402,0.1797,2781.3,2780.7,0.00207252]
[1643805331204,0.90773372,2781.5,2780.7,0.00207252]
[1643805331205,0.1797,2781.4,2780.7,0.00207252]
[1643805331608,0.1797,2781.4,2780.7,1.89318028]
[1643805331803,0.1797,2781.4,2780.7,2.19318028]
[1643805332059,0.1797,2781.4,2780.7,0.30207252]
[1643805332258,0.1797,2781.4,2780.7,0.00207252]
[1643805334764,0.90773372,2781.5,2780.8,0.1797]
[1643805334965,0.90773372,2781.5,2780.9,0.89896]
[1643805335164,0.1797,2781.6,2780.9,1.19896]
[1643805336193,1.00008396,2781.6,2780.9,1.19896]
[1643805336995,0.82038396,2781.6,2780.9,1.19896]
[1643805338194,0.82038396,2781.6,2781.0,0.1797]
[1643805338403,0.1797,2781.7,2781.0,0.1797]
[1643805338600,0.1797,2781.7,2781.1,0.89887]
[1643805338799,6.0526,2781.8,2781.2,1.90059237]
[1643805338999,6.0526,2781.8,2781.2,2.38029237]
[1643805339201,0.1797,2781.9,2781.2,0.4797]
[1643805339441,0.1797,2781.9,2781.2,2.09761]
[1643805339845,0.91765933,2781.7,2781.2,2.09761]
[1643805341248,0.91765933,2781.7,2781.2,3.94503451]
[1643805341452,0.91765933,2781.7,2781.2,2.09761]
[1643805341647,0.1797,2781.9,2781.2,2.09761]
[1643805341648,0.1797,2781.9,2781.2,3.96670556]
[1643805341848,3.1951,2782.0,2781.2,4.14640556]
[1643805342048,0.84829212,2781.9,2781.2,4.14640556]
[1643805342649,0.84829212,2781.9,2781.2,4.17579771]
[1643805343049,0.84829212,2781.9,2781.2,2.27731]
[1643805343708,0.8444694,2781.6,2781.2,2.27731]
[1643805343905,0.8444694,2781.6,2781.2,0.46955136]
[1643805345106,3.1951,2782.0,2781.2,0.94925136]
[1643805345306,0.85625916,2781.9,2781.2,0.94925136]
[1643805346211,1.68950066,2781.9,2781.2,0.94925136]
[1643805346406,0.85625916,2781.8,2781.2,0.94925136]
[1643805346609,0.8332415,2781.9,2781.2,0.94925136]
[1643805347275,3.1951,2782.0,2781.2,0.94925136]
[1643805347476,6.6174,2782.1,2781.4,0.89871]
[1643805347477,0.85615239,2781.9,2781.4,0.89871]
[1643805347679,0.01,2782.1,2781.4,0.89871]
[1643805347680,0.01,2782.1,2781.5,0.1797]
[1643805347877,0.01,2782.1,2781.6,1.79723]
[1643805348076,0.01,2782.1,2781.7,0.1797]
[1643805348279,0.01,2782.1,2781.8,0.3]
[1643805348479,0.01,2782.1,2781.8,1.19861]
[1643805349080,0.00891592,2782.1,2781.8,1.19861]
[1643805349884,0.00891592,2782.1,2781.9,0.1797]
[1643805350084,0.00891592,2782.1,2781.8,1.19861]
[1643805351003,9.37348923,2783.1,2781.8,0.95419997]
[1643805351004,0.00891592,2782.2,2781.8,0.95419997]
[1643805351210,1.24658,2783.0,2782.0,1.0]
[1643805351504,1.06688,2783.0,2782.1,2.63141216]
[1643805351704,1.06688,2783.0,2782.6,1.90065131]
[1643805351901,0.6861491,2783.5,2782.7,2.87219091]
[1643805352102,0.6861491,2783.5,2782.8,1.0]
[1643805352300,0.6861491,2783.5,2782.9,3.56274556]
[1643805352505,1.05235191,2784.0,2783.0,1.8979815]
[1643805352704,0.85904553,2783.9,2783.1,2.9636923]
[1643805352900,0.87275191,2784.0,2783.2,1.4796]
[1643805353103,0.87275191,2784.0,2783.3,2.77922636]
[1643805353311,0.87275191,2784.0,2783.4,1.1796]
[1643805353507,0.87275191,2784.0,2783.5,2.24030354]
[1643805353808,0.1796,2784.5,2783.6,0.4796]
[1643805354011,0.89686547,2784.4,2783.7,2.1506024]
[1643805354207,0.89686547,2784.4,2783.7,2.0]
[1643805354457,0.89686547,2784.4,2783.8,0.516]
[1643805354655,1.3768,2784.7,2784.0,0.39909228]
[1643805354855,0.84214893,2784.6,2784.1,0.516]
[1643805355055,0.1794,2784.9,2784.1,0.516]
[1643805355257,0.84055453,2784.8,2784.1,0.516]
[1643805355454,0.84055453,2784.8,2784.1,0.6954]
[1643805356461,1.19500406,2785.5,2784.1,0.6954]
[1643805356462,0.1794,2785.2,2784.2,2.0]
[1643805356664,0.91269475,2785.8,2784.3,1.6954]
[1643805356665,0.8393816,2785.1,2784.3,1.6954]
[1643805356868,5.9671,2786.2,2784.3,1.6954]
[1643805356869,0.1794,2785.7,2784.4,9.07772277]
[1643805357063,0.6861491,2786.1,2784.6,0.246]
[1643805357064,0.82275877,2785.6,2784.6,0.246]
[1643805357259,0.1794,2786.1,2784.8,1.0]
[1643805357461,0.82272339,2786.0,2785.1,1.0]
[1643805357658,1.02743,2786.2,2785.1,1.0]
[1643805357659,0.82272339,2785.9,2785.3,1.0]
[1643805357859,1.02743,2786.2,2785.3,1.0]
[1643805357860,0.84803,2786.2,2785.4,2.6954]
[1643805358303,0.84803,2786.2,2785.5,1.0]
[1643805358502,0.84803,2786.2,2785.6,0.6954]
[1643805358902,0.84803,2786.2,2785.6,0.9954]
[1643805359105,0.84803,2786.2,2785.7,2.03006329]
[1643805359306,0.84803,2786.2,2785.8,0.516]
[1643805359506,0.1794,2786.8,2785.9,3.135322]
[1643805359804,1.1106382,2786.9,2786.0,1.6954]
[1643805360603,0.89057337,2786.8,2786.0,1.6954]
[1643805361003,1.1106382,2786.9,2786.0,1.6954]
[1643805361205,0.89057644,2786.8,2786.0,1.6954]
[1643805361409,1.1106382,2786.9,2786.1,2.0]
[1643805361603,1.1106382,2786.9,2786.2,0.516]
[1643805361807,1.1106382,2786.9,2786.3,2.28938207]
[1643805362049,1.1106382,2786.9,2786.3,2.58938207]
[1643805362249,1.1106382,2786.9,2786.3,3.20726722]
[1643805362250,0.89061375,2786.8,2786.3,3.20726722]
[1643805362850,0.89061375,2786.8,2786.3,1.90726722]
[1643805363055,1.1106382,2786.9,2786.3,2.20726722]
[1643805363254,1.1106382,2786.9,2786.2,0.516]
[1643805363255,1.1106382,2786.9,2786.0,0.1794]
[1643805363455,1.1106382,2786.9,2785.5,2.1794]
[1643805363457,0.1794,2786.8,2785.5,2.1794]
[1643805363656,1.02743,2786.8,2785.5,2.1794]
[1643805364253,0.78511689,2786.5,2785.5,2.1794]
[1643805364855,0.78511689,2786.5,2785.5,1.4794]
[1643805365060,0.19850054,2786.3,2785.5,0.4794]
[1643805365356,0.19850054,2786.3,2785.3,0.1794]
[1643805365357,0.1794,2786.2,2785.3,0.1794]
[1643805365555,0.1794,2786.2,2785.2,0.06352913]
[1643805365556,0.7903258,2785.4,2785.2,0.06352913]
[1643805365822,0.1794,2786.2,2785.2,0.06352913]
[1643805365823,0.19810814,2786.2,2785.2,0.06352913]
[1643805366720,0.71101187,2785.6,2785.2,0.06352913]
[1643805366921,0.71101187,2785.6,2784.5,0.1794]
[1643805366922,0.20033884,2785.4,2784.5,0.1794]
[1643805367126,0.71101187,2785.6,2784.5,0.1794]
[1643805367127,0.1794,2785.5,2784.5,0.1794]
[1643805367321,0.20278514,2785.5,2784.5,0.1794]
[1643805367523,0.1794,2785.5,2784.5,0.1794]
[1643805368526,0.22244456,2785.4,2784.5,0.1794]
[1643805368728,0.22244456,2785.4,2784.3,0.1794]
[1643805368927,0.1794,2785.5,2784.3,0.1794]
[1643805369127,0.69728703,2785.0,2784.3,0.1794]
[1643805369327,0.1794,2785.5,2784.3,0.1794]
[1643805369551,0.1794,2786.1,2784.3,0.1794]
[1643805369754,0.1794,2786.1,2784.3,1.1794]
[1643805369951,0.1794,2786.1,2784.4,2.1389568]
[1643805370152,0.2344442,2785.7,2784.5,0.1794]
[1643805370355,0.2344442,2785.7,2784.3,0.1795]
[1643805370356,6.45,2785.5,2784.3,0.1795]
[1643805370654,2.76092439,2785.4,2784.3,0.1795]
[1643805370855,2.76092439,2785.4,2784.0,0.13819997]
[1643805371052,2.76092439,2785.4,2784.0,0.43819997]
[1643805371254,0.84882008,2784.4,2784.0,0.13819997]
[1643805371457,0.84882008,2784.4,2783.9,0.31759997]
[1643805371658,0.84882008,2784.4,2783.9,0.1794]
[1643805372060,0.84882008,2784.4,2783.0,0.1794]
[1643805372061,0.25566929,2783.9,2783.0,0.1794]
[1643805372264,2.34775443,2784.3,2783.0,0.1794]
[1643805372265,2.9199885,2784.3,2783.0,0.1794]
[1643805372463,2.9199885,2784.3,2782.7,0.1796]
[1643805372464,0.86148214,2783.8,2782.7,0.1796]
[1643805375916,0.1796,2783.7,2782.7,0.1796]
[1643805377154,0.86148214,2783.8,2782.7,1.1796]
[1643805377547,0.1796,2784.1,2782.7,1.1796]
[1643805378149,0.1796,2784.1,2782.8,1.58686968]
[1643805378354,0.1796,2784.1,2782.9,0.1796]
[1643805378558,0.1796,2784.1,2783.2,2.62694494]
[1643805378754,0.1796,2784.4,2783.3,2.21970617]
[1643805378957,0.1796,2784.8,2783.3,3.21970617]
[1643805379154,0.1796,2784.8,2783.4,0.516]
[1643805379358,0.1796,2784.8,2783.8,1.0]
[1643805379558,6.1537,2785.2,2783.6,0.36533096]
[1643805379559,0.1794,2785.1,2783.9,0.6954]
[1643805379976,0.81168415,2784.9,2783.9,0.6954]
[1643805380357,0.81168415,2784.9,2783.9,0.9954]
[1643805382301,0.81168415,2784.9,2783.9,0.6954]
[1643805383104,0.1794,2784.8,2784.0,1.69382788]
[1643805383305,0.1794,2784.8,2783.9,0.6954]
[1643805383507,0.81168415,2784.9,2783.9,0.6954]
[1643805383707,0.1794,2784.8,2783.9,0.9954]
[1643805384309,0.91681626,2784.4,2783.9,0.1794]
[1643805384558,0.91681626,2784.4,2783.4,0.1794]
[1643805384756,0.1796,2784.3,2783.0,0.1796]
[1643805385357,0.90088832,2783.7,2783.0,0.1796]
[1643805387750,0.68236277,2784.0,2782.7,0.17465226]
[1643805388181,0.68236277,2784.0,2782.7,1.17465226]
[1643805388386,0.68236277,2784.0,2782.8,0.516]
[1643805388586,0.68236277,2784.0,2782.9,0.1796]
[1643805388787,0.68236277,2784.0,2782.9,3.81446795]
[1643805389185,0.68236277,2784.0,2782.9,4.11446795]
[1643805389388,1.3328,2784.2,2782.9,3.69827]
[1643805389587,1.3328,2784.2,2782.9,6.1612899]
[1643805389790,1.3328,2784.2,2782.9,3.99827]
[1643805389987,1.3328,2784.2,2782.9,1.9956]
[1643805390393,1.3328,2784.2,2782.9,0.4796]
[1643805391391,0.94627082,2783.8,2782.9,0.4796]
[1643805391589,6.817,2784.2,2782.9,0.4796]
[1643805392034,6.817,2784.2,2782.9,0.9956]
[1643805392634,6.817,2784.2,2782.9,1.9956]
[1643805392834,0.87770808,2783.9,2782.9,1.9956]
[1643805393238,0.87770808,2783.9,2782.9,0.9956]
[1643805393437,0.87770808,2783.9,2783.0,0.63306104]
[1643805393637,0.87770808,2783.9,2783.1,0.1796]
[1643805394238,6.817,2784.2,2783.1,0.4796]
[1643805394439,0.86647919,2784.1,2783.1,0.3]
[1643805394639,6.817,2784.2,2783.0,0.4796]
[1643805394843,0.69853332,2784.9,2783.6,1.41795771]
[1643805395046,1.04713293,2784.8,2784.2,1.0]
[1643805395243,3.02364343,2786.1,2784.2,1.0]
[1643805395244,0.09654,2785.5,2784.8,0.7110773]
[1643805395443,0.87074274,2785.4,2784.9,0.516]
[1643805395693,0.09656,2786.0,2784.9,0.92441321]
[1643805395887,0.87068866,2785.9,2785.0,0.10841321]
[1643805396087,0.96729866,2785.8,2785.1,0.516]
[1643805396287,0.87068866,2785.7,2785.1,0.816]
[1643805396787,0.87068866,2785.6,2785.1,0.816]
[1643805397486,0.87068866,2785.6,2785.2,2.08933658]
[1643805397887,0.1794,2785.7,2785.2,3.08933658]
[1643805398090,0.87078754,2785.6,2785.2,2.08933658]
[1643805398297,0.1794,2785.7,2785.3,1.0]
[1643805398497,0.87079605,2785.6,2785.4,1.91174256]
[1643805398690,0.87079605,2785.6,2785.2,2.0905607]
[1643805398890,0.87079605,2785.6,2785.2,2.91827104]
[1643805399092,0.1794,2785.7,2785.2,1.91827104]
[1643805399291,0.1794,2785.7,2785.3,1.0]
[1643805399538,0.1794,2785.7,2785.2,2.91827104]
[1643805399738,0.870578,2785.6,2785.3,1.0]
[1643805400139,0.870578,2785.6,2785.2,2.90498677]
[1643805400341,0.870578,2785.6,2785.3,1.0]
[1643805400541,0.870578,2785.6,2785.3,1.3]
[1643805400740,0.1794,2785.7,2785.3,1.3]
[1643805400949,0.87021513,2785.6,2785.3,1.0]
[1643805401145,0.1794,2786.1,2785.2,0.3]
[1643805401343,1.04917172,2785.5,2784.8,0.516]
[1643805401643,1.8603491,2786.2,2784.8,0.516]
[1643805401644,0.86977172,2785.4,2784.8,0.516]
[1643805401842,0.86977172,2785.4,2784.5,0.1794]
[1643805402044,0.78773927,2785.2,2784.8,0.84862]
[1643805402244,0.86977172,2785.1,2784.8,0.84862]
[1643805402450,0.19850933,2785.0,2784.8,0.84862]
[1643805402644,0.86977172,2784.9,2784.8,0.84862]
[1643805403293,0.86977172,2784.9,2783.8,0.1794]
[1643805403495,0.86977172,2784.9,2783.9,0.63086466]
[1643805403690,0.86977172,2784.9,2784.0,0.1794]
[1643805404490,0.93727583,2784.6,2784.0,0.1794]
[1643805404890,0.93727583,2784.6,2783.8,0.1794]
[1643805405090,0.1794,2784.9,2783.9,0.63124227]
[1643805405291,0.87058602,2784.8,2783.9,2.8694234]
[1643805405492,0.87058602,2784.8,2783.9,2.23818113]
[1643805405791,0.87058602,2784.8,2783.9,0.3]
[1643805406192,0.87058602,2784.8,2783.8,0.4794]
[1643805406390,0.1794,2784.7,2783.7,0.3]
[1643805406598,0.87058602,2784.6,2783.7,0.3]
[1643805406796,0.1794,2784.5,2783.8,1.91563322]
[1643805407040,0.1794,2784.5,2783.7,3.22944317]
[1643805407239,0.78787782,2784.6,2783.8,1.63141208]
[1643805407439,0.87092161,2784.5,2783.9,1.90892193]
[1643805407640,0.78787782,2784.6,2783.9,1.90892193]
[1643805407842,0.78787782,2784.6,2783.9,3.20892193]
[1643805408039,0.78787782,2784.6,2783.9,2.20892193]
[1643805408243,0.78787782,2784.6,2784.0,1.0]
[1643805408443,0.1794,2784.9,2783.9,0.3]
[1643805408651,0.87153063,2784.8,2784.0,1.8924751]
[1643805408846,0.87153063,2784.8,2784.0,2.1924751]
[1643805409045,0.87153063,2784.8,2784.1,0.9317722]
[1643805409244,3.8697,2785.1,2784.2,2.90515883]
[1643805409444,0.87142558,2785.0,2784.2,2.27330003]
[1643805409645,0.87142558,2785.0,2784.3,1.0]
[1643805409844,0.87142558,2785.0,2784.4,1.92223891]
[1643805410048,0.87142558,2785.0,2784.4,2.22223891]
[1643805410446,0.87142558,2785.0,2784.4,2.1976305]
[1643805410689,0.87142558,2785.0,2784.4,2.91467065]
[1643805410896,0.87142558,2785.0,2784.4,0.3]
[1643805411093,0.87142558,2785.0,2784.5,1.3]
[1643805411299,0.87142558,2785.0,2784.5,0.3]
[1643805411494,0.6745006,2784.7,2784.2,0.3]
[1643805411698,0.6745006,2784.7,2784.1,0.3]
[1643805411994,0.6745006,2784.7,2784.1,2.19305504]
[1643805412393,0.6745006,2784.7,2784.1,1.3]
[1643805412793,0.6745006,2784.7,2784.1,1.0]
[1643805412995,0.87188281,2784.6,2784.1,1.0]
[1643805413195,0.87188281,2784.6,2784.0,1.0]
[1643805413395,0.87188281,2784.6,2783.8,1.1794]
[1643805413596,0.87188281,2784.6,2783.9,0.63189353]
[1643805413800,0.1794,2785.1,2783.9,0.93189353]
[1643805413996,0.87204119,2785.0,2784.0,0.63189353]
[1643805414196,0.1794,2784.9,2784.0,0.63189353]
[1643805414453,0.87204119,2784.8,2784.0,0.63189353]
[1643805414844,0.1794,2785.1,2784.0,0.63189353]
[1643805414845,0.79004055,2784.6,2784.0,0.63189353]
[1643805415845,0.79004055,2784.6,2784.1,0.63189353]
[1643805416048,0.79004055,2784.6,2783.8,3.12181733]
[1643805416245,0.79004055,2784.6,2783.9,0.63215539]
[1643805416452,0.1794,2785.1,2783.9,1.63215539]
[1643805416648,0.87187721,2785.0,2784.0,2.55556854]
[1643805416847,0.1794,2784.9,2784.1,1.93215539]
[1643805417048,0.1794,2784.9,2784.2,0.63215539]
[1643805417248,0.87187721,2784.8,2784.1,1.6]
[1643805417446,0.87187721,2784.8,2784.1,0.6]
[1643805417748,0.82051606,2784.4,2783.9,1.3]
[1643805418047,0.82051606,2784.4,2784.0,0.63266795]
[1643805418294,0.82051606,2784.4,2783.5,1.1794]
[1643805418493,0.82051606,2784.4,2783.6,2.59764536]
[1643805418693,0.82051606,2784.4,2783.7,0.81206998]
[1643805418893,0.82051606,2784.4,2783.8,0.63266998]
[1643805419100,0.82051606,2784.4,2783.8,2.56669644]
[1643805419293,0.82051606,2784.4,2783.9,1.63266998]
[1643805419496,1.05702339,2785.1,2783.9,1.3]
[1643805419698,0.87295682,2785.0,2783.9,1.3]
[1643805419896,0.1794,2784.9,2784.0,0.63206211]
[1643805420097,0.87295682,2784.8,2783.7,0.3]
[1643805420303,0.87295682,2784.8,2783.8,0.63248113]
[1643805420497,1.05235682,2784.7,2783.8,0.63248113]
[1643805420697,0.87762339,2785.1,2783.8,0.63248113]
[1643805420698,0.87295682,2784.6,2783.8,0.63248113]
[1643805420898,0.70851965,2784.4,2783.8,0.63248113]
[1643805421300,0.1794,2785.0,2783.8,2.52404293]
[1643805421505,0.87282328,2784.9,2783.9,0.63248113]
[1643805421708,0.87282328,2784.9,2784.0,2.87277554]
[1643805421970,0.1794,2785.1,2784.1,1.44848113]
[1643805422169,0.87271139,2785.0,2784.3,1.70267]
[1643805422368,9.5695491,2785.6,2784.4,4.40379649]
[1643805422369,0.87271139,2785.4,2784.4,4.40379649]
[1643805422566,8.8834,2785.6,2784.4,4.40379649]
[1643805422567,0.87259766,2785.3,2784.5,1.53001113]
[1643805422765,0.87259766,2785.2,2784.6,3.56359688]
[1643805422965,8.8834,2785.6,2784.7,0.63248113]
[1643805422966,0.87259766,2785.1,2784.7,0.63248113]
[1643805423168,8.8834,2785.6,2784.8,2.57094933]
[1643805423369,0.87263825,2785.5,2784.9,1.0]
[1643805423571,0.87263825,2785.4,2785.0,2.38798962]
[1643805423870,0.87263825,2785.4,2784.9,1.0]
[1643805423871,0.87263825,2785.3,2784.9,1.86742283]
[1643805424070,0.87263825,2785.2,2784.8,0.816]
[1643805424275,0.87263825,2785.1,2784.9,1.90362127]
[1643805424476,1.3598,2785.8,2784.9,1.90362127]
[1643805424678,0.84437807,2785.7,2784.9,2.08302127]
[1643805425275,0.67022447,2785.6,2784.9,2.08302127]
[1643805425481,1.1804,2785.8,2784.9,3.08302127]
[1643805425482,0.84437807,2785.5,2784.9,3.08302127]
[1643805425690,0.84437807,2785.4,2784.9,3.08302127]
[1643805425892,0.84437807,2785.3,2784.9,2.90362127]
[1643805426091,0.84437807,2785.2,2784.9,2.90362127]
[1643805426291,1.3598,2785.8,2784.9,2.90362127]
[1643805426488,0.74869169,2785.6,2784.9,2.90362127]
[1643805426690,0.87312398,2785.5,2784.9,2.90362127]
[1643805427091,0.87312398,2785.5,2784.8,0.816]
[1643805427691,0.87312398,2785.5,2784.9,1.869009]
[1643805427891,0.87312398,2785.5,2784.9,1.87095051]
[1643805428091,0.87312398,2785.5,2784.9,2.86742016]
[1643805428293,0.87312398,2785.5,2784.9,2.88897168]
[1643805428494,0.87312398,2785.5,2784.9,3.40497168]
[1643805429446,0.87312398,2785.4,2784.9,3.40027299]
[1643805429642,1.3598,2785.8,2784.9,3.40027299]
[1643805429643,0.87312398,2785.3,2784.9,3.40027299]
[1643805429843,0.87312398,2785.2,2784.9,3.57967299]
[1643805430046,0.87312398,2785.7,2784.9,3.57967299]
[1643805430244,0.87314217,2785.6,2784.9,3.57967299]
[1643805430444,0.87314217,2785.6,2784.9,1.6954]
[1643805430646,0.87314217,2785.6,2784.9,3.58410056]
[1643805430847,0.87314217,2785.6,2784.9,2.5754298]
[1643805431048,0.87314217,2785.6,2784.9,0.6954]
[1643805431747,0.87314217,2785.6,2784.9,0.516]
[1643805434497,0.87314217,2785.6,2784.9,2.42646728]
[1643805435096,0.87314217,2785.6,2784.9,2.39789845]
[1643805435296,0.87314217,2785.6,2784.9,0.516]
[1643805435797,0.87314217,2785.6,2784.9,2.39536154]
[1643805436599,0.87314217,2785.6,2784.8,0.3]
[1643805436799,0.87314217,2785.6,2784.7,3.46746366]
[1643805437238,0.87314217,2785.6,2784.8,0.65994843]
[1643805437642,0.83222918,2785.2,2784.8,0.65994843]
[1643805437841,0.87314217,2785.1,2784.7,0.4794]
[1643805438046,0.87314217,2785.0,2784.7,0.1794]
[1643805438249,0.87314217,2784.9,2784.7,0.1794]
[1643805438449,0.87314217,2784.8,2784.7,0.1794]
[1643805439051,0.95365359,2784.7,2784.3,0.6]
[1643805439255,0.95365359,2784.7,2784.4,0.66166447]
[1643805439454,0.95365359,2784.7,2784.4,0.96166447]
[1643805439662,0.95365359,2784.7,2784.5,0.66166447]
[1643805439955,0.95365359,2784.7,2784.6,0.66166447]
[1643805440152,1.79935077,2784.7,2784.6,0.66166447]
[1643805440364,1.79935077,2784.7,2784.1,0.1794]
[1643805440561,0.84569718,2784.6,2784.2,0.66068371]
[1643805440805,0.84569718,2784.6,2784.1,0.66068371]
[1643805441002,0.84569718,2784.6,2784.2,0.66068371]
[1643805441204,0.84569718,2784.6,2784.3,0.66068371]
[1643805441404,0.84569718,2784.6,2784.4,0.66068371]
[1643805441707,0.84569718,2784.6,2783.7,0.1794]
[1643805441906,0.84569718,2784.6,2783.8,0.66096755]
[1643805443011,0.84569718,2784.6,2783.9,0.1794]
[1643805443207,0.84569718,2784.6,2784.0,0.66096755]
[1643805443606,0.84569718,2784.6,2784.0,0.96096755]
[1643805443807,0.84569718,2784.6,2784.1,0.66096755]
[1643805446345,0.95365359,2784.7,2784.1,0.66096755]
[1643805446546,0.84679242,2784.6,2784.1,0.66096755]
[1643805446746,0.84520121,2784.6,2784.1,0.66096755]
[1643805447747,0.84520121,2784.6,2783.9,0.1794]
[1643805447748,0.84520121,2784.6,2783.9,0.4794]
[1643805447948,0.84520121,2784.6,2783.9,0.1794]
[1643805448188,0.84520121,2784.6,2783.9,0.4794]
[1643805448393,0.84520121,2784.6,2783.8,0.1794]
[1643805449394,0.22963154,2784.5,2783.8,0.1794]
[1643805449596,0.22963154,2784.5,2783.7,0.1794]
[1643805449794,0.1794,2784.6,2783.7,0.1794]
[1643805450001,0.1794,2784.6,2783.6,1.1794]
[1643805450198,0.95365359,2784.7,2783.6,1.1794]
[1643805450199,1.13305359,2784.7,2783.6,1.85715769]
[1643805450397,0.84981864,2784.2,2783.6,1.85715769]
[1643805450596,0.1794,2784.7,2783.7,1.89717367]
[1643805450797,0.1794,2784.7,2783.7,3.19717367]
[1643805451197,0.1794,2784.7,2783.7,3.87493136]
[1643805451394,1.1509,2784.9,2783.8,0.1794]
[1643805451395,0.1794,2784.8,2783.8,0.1794]
[1643805451595,0.76712908,2784.5,2783.8,0.1794]
[1643805454847,0.1794,2784.8,2783.8,0.1794]
[1643805455047,0.1794,2784.8,2783.9,0.67775769]
[1643805455252,0.1794,2784.8,2784.0,2.26468066]
[1643805455450,1.1509,2784.9,2784.0,2.26468066]
[1643805455693,1.1509,2784.9,2784.0,3.26468066]
[1643805455894,0.94876259,2784.6,2784.0,3.26468066]
[1643805456094,1.1509,2784.9,2784.0,3.26468066]
[1643805456394,1.1509,2784.9,2784.0,3.44408066]
[1643805456593,1.1509,2784.9,2784.0,4.12183835]
[1643805456799,1.1509,2784.9,2784.0,3.44408066]
[1643805457600,1.1509,2784.9,2784.0,0.1794]
[1643805457806,1.1509,2784.9,2784.0,2.71792183]
[1643805458000,0.93165344,2784.3,2784.0,2.71792183]
[1643805458202,0.93165344,2784.3,2783.9,1.3]
[1643805458400,0.93165344,2784.3,2783.9,0.3]
[1643805458601,0.93165344,2784.3,2783.8,4.07134101]
[1643805459652,0.1794,2784.8,2783.8,4.07134101]
[1643805460748,0.1794,2784.8,2783.8,4.07025853]
[1643805461454,0.7818187,2784.5,2783.8,4.07025853]
[1643805462556,0.7818187,2784.5,2783.8,3.39250084]
[1643805462753,0.7818187,2784.5,2783.8,4.07025853]
[1643805464196,0.7818187,2784.5,2783.8,4.96807233]
[1643805464594,0.75687429,2784.5,2783.8,4.96807233]
[1643805464795,0.75687429,2784.5,2783.8,4.07025853]
[1643805466698,0.8575813,2784.4,2783.9,0.65318207]
[1643805466944,0.8575813,2784.4,2784.0,1.8542274]
[1643805467144,0.8575813,2784.4,2784.1,0.65318207]
[1643805467344,0.8575813,2784.4,2784.1,0.95318207]
[1643805467545,0.8575813,2784.4,2784.2,0.65318207]
[1643805468549,0.8575813,2784.4,2784.1,0.65318207]
[1643805468750,0.8575813,2784.4,2784.2,0.65318207]
[1643805468953,0.8575813,2784.4,2784.3,0.65318207]
[1643805469350,0.8575813,2784.4,2783.9,1.65318207]
[1643805469551,0.8575813,2784.4,2784.0,0.65318207]
[1643805471798,0.94982504,2784.5,2784.0,0.65318207]
[1643805471799,0.85930827,2784.3,2784.0,0.65318207]
[1643805471999,0.94982504,2784.5,2784.0,0.65318207]
[1643805472200,0.94982504,2784.5,2784.1,0.65318207]
[1643805472400,0.94982504,2784.5,2784.2,0.65318207]
[1643805472401,0.75687429,2784.5,2784.2,0.65318207]
[1643805472599,0.75687429,2784.5,2784.3,0.65318207]
[1643805472600,0.85935611,2784.4,2784.3,0.65318207]
[1643805472800,0.75687429,2784.5,2783.9,0.95318207]
[1643805473000,0.8593604,2784.4,2784.0,0.65318207]
[1643805473308,0.75687429,2784.5,2784.0,0.65318207]
[1643805473515,0.8593607,2784.3,2784.0,0.65318207]